Cogmind - Beta 13 *** ADVENTURER MODE // 2024.04.04 @ 22:48:52 Player: Tav Result: Destroyed by H-55 Commando with Gauss Rifle Performance ------------- Evolutions (3) 1500 Regions Visited (8) 1600 Robots Destroyed (52) 260 Value Destroyed (1372) 1372 Prototype IDs (4) 80 Alien Tech Used (0) 0 Bonus (361) 361 TOTAL SCORE: 5173 Bonus ------- High Alert Combat Kills 61 Aligned with FarCom 300 Cogmind --------- Core Integrity 0/700 Matter 300/300 Energy 99/100 System Corruption 1% Temperature Cool (0) Movement Core (50) Location -7/Factory Parts ------- > --- POWER (1) -------- (None) > --- PROPULSION (4) --- (None) > --- UTILITY (6) ------ Improved Signal Interpreter Advanced Terrain Scan Processor Utility Shielding > --- WEAPON (2) ------- (None) > --- INVENTORY (5) ---- Weight Redist. System Improved Terrain Scanner Peak State ------------ > --- POWER ------------ Ion Engine > --- PROPULSION ------- Improved Flight Unit Improved Flight Unit Improved VTOL Module Improved VTOL Module > --- UTILITY ---------- Weight Redist. System Improved Signal Interpreter Improved Terrain Scanner Advanced Terrain Scan Processor Utility Shielding Hacking Suite > --- WEAPON ----------- Improved Grenade Launcher Longsword +1 > --- INVENTORY -------- Nuclear Core Reinforced Deuterium Engine Weight Redist. System Weight Redist. System Hardened Medium Armor Plating [Rating: 43] Favorites ----------- Power Ion Engine Engine Ion Engine Power Core Light Nuclear Core Propulsion Improved Flight Unit Wheel Wheel Flight Unit Improved Flight Unit Utility Improved Terrain Scanner Device Improved Terrain Scanner Storage Small Storage Unit Processor Improved Signal Interpreter Hackware Hacking Suite Protection Utility Shielding Weapon Longsword +1 Energy Gun Small Laser Ballistic Gun Light Assault Rifle Launcher Improved Grenade Launcher Slashing Weapon Longsword +1 Build | -11 -10 -10 -9 -9 -9 -8 -8 -7 ------- Run | Yrd Mat Min Mat Min Exi Min Mat Fac Slots Evolved 6 | . . . 2 . . . 2 2 Power . | . . . . . . . . . Propulsion 2 | . . . . . . . 1 1 Utility 4 | . . . 2 . . . 1 1 Weapon . | . . . . . . . . . Parts Attached 41 | 5 7 3 1 7 1 . 7 10 Power 6 | 1 1 . . 1 . . . 3 Engine 5 | 1 . . . 1 . . . 3 Core 1 | . 1 . . . . . . . Reactor . | . . . . . . . . . Propulsion 8 | 2 2 . . 1 . . 1 2 Treads . | . . . . . . . . . Leg . | . . . . . . . . . Wheel 3 | 2 . . . . . . . 1 Hover . | . . . . . . . . . Flight 5 | . 2 . . 1 . . 1 1 Utility 17 | 1 3 2 1 2 . . 4 4 Device 7 | . 1 2 . 1 . . 1 2 Storage 1 | 1 . . . . . . . . Processor 6 | . 2 . 1 1 . . 1 1 Hackware 1 | . . . . . . . 1 . Protection 2 | . . . . . . . 1 1 Artifact . | . . . . . . . . . Weapon 10 | 1 1 1 . 3 1 . 2 1 Energy Gun 1 | . 1 . . . . . . . Energy Cannon . | . . . . . . . . . Ballistic Gun 2 | 1 . . . . . . . 1 Ballistic Cannon . | . . . . . . . . . Launcher 5 | . . . . 3 . . 2 . Special Weapon . | . . . . . . . . . Impact Weapon . | . . . . . . . . . Slashing Weapon 2 | . . 1 . . 1 . . . Piercing Weapon . | . . . . . . . . . Special Melee Weapon . | . . . . . . . . . Unidentified Prototypes 4 | . 1 1 . . 1 . 1 . Parts Lost 18 | . . . 2 . . . 3 13 Power 4 | . . . 1 . . . 1 2 Propulsion 5 | . . . . . . . . 5 Utility 5 | . . . 1 . . . 1 3 Weapon 4 | . . . . . . . 1 3 Highest Loss Streak 8 | . . . 2 . . . 3 8 To Critical Strikes 1 | . . . . . . . . 1 Average Slot Usage (%) 86 | . 83 100 75 88 89 88 84 86 Engine 5 | . 11 . . 11 11 11 6 4 Core 2 | . 2 14 8 . . . . . Flight 24 | . 26 28 22 22 22 22 22 25 Device 11 | . 4 12 8 10 11 11 13 12 Processor 19 | . 19 15 15 32 33 33 21 15 Hackware 2 | . . . . . . . . 6 Protection 4 | . . . . . . . 5 7 Ballistic Gun 3 | . 14 14 11 . . . . . Launcher 3 | . . . . 6 6 . 4 4 Slashing Weapon 6 | . . 8 11 4 6 11 9 6 Naked Turns . | . . . . . . . . . Heaviest Build 21 | 11 11 9 9 12 13 7 14 21 Greatest Support 22 | 20 20 10 10 10 10 10 21 22 Greatest Overweight (x) 2 | . 2 . . 1 1 . . 1 Average Overweight (x) . | . . . . . . . . . Largest Inventory Capacity 8 | 8 8 5 5 5 5 5 5 5 Average Capacity 5 | 6 5 5 5 5 5 5 5 5 Most Carried 5 | 1 5 5 5 5 5 5 5 5 Average Carried 4 | . 4 4 5 3 4 5 4 4 Final Capacity 8 | 8 5 5 5 5 5 5 5 5 Final Carried 5 | 1 5 5 5 4 5 5 4 2 Class Distribution -------------------- 45% | Mutant 22% | Hacker-Scout 14% | Scout 8% | Hacker-Assassin 7% | Hacker-Mutant Dominant Class ---------------- Mutant | -10/Materials Mutant | -10/Mines Mutant | -9/Materials Mutant | -9/Mines Mutant | -9/Exiles Scout | -8/Mines Scout | -8/Materials Hacker-Scout | -7/Factory Resources | -11 -10 -10 -9 -9 -9 -8 -8 -7 ----------- Run | Yrd Mat Min Mat Min Exi Min Mat Fac Matter Collected 892 | 186 174 . 30 83 . . 141 278 Remotely . | . . . . . . . . . Salvage Created 1414 | . 156 . 143 67 . . 555 493 Parts 112 | . 14 . 12 15 . . 47 24 Haulers Intercepted 3 | . 1 . . . . . 1 1 Recyclers Shooed . | . . . . . . . . . Parts Field Recycled . | . . . . . . . . . Retrieved Matter . | . . . . . . . . . Parts Self-Destructed . | . . . . . . . . . Prevented . | . . . . . . . . . Kills | -11 -10 -10 -9 -9 -9 -8 -8 -7 ------- Run | Yrd Mat Min Mat Min Exi Min Mat Fac Combat Hostiles Destroyed 31 | . 4 . 4 3 . . 15 5 Melee 10 | . . . 4 . . . 5 1 Guns 4 | . 4 . . . . . . . AOE 17 | . . . . 3 . . 10 4 Classes Destroyed 11 | . 4 . . 1 . . 4 2 Worker 1 | . . . . . . . 1 . Builder 2 | . . . . . . . 2 . Tunneler 5 | . . . . 3 . . . 2 Hauler 3 | . 1 . . . . . 1 1 Recycler 2 | . . . . . . . . 2 Operator 2 | . . . . . . . 1 1 Watcher 6 | . 1 . 1 . . . 3 1 Swarmer 11 | . 3 . 2 3 . . 3 . Grunt 15 | . 1 . 2 . . . 9 3 Sentry 4 | . . . . . . . 3 1 Programmer 1 | . . . . . . . . 1 Best Kill Streak 15 | . 4 . 2 4 . . 15 3 Combat Bots Only 11 | . 3 . 2 3 . . 11 3 Max Kills in Single Turn 4 | . 1 . 1 4 . . 3 2 Gunslinging . | . . . . . . . . . Exploded 3 | . . . . 3 . . 2 2 Melee 1 | . . . 1 . . . 1 1 Uniques/NPCs Destroyed . | . . . . . . . . . Combat | -11 -10 -10 -9 -9 -9 -8 -8 -7 -------- Run | Yrd Mat Min Mat Min Exi Min Mat Fac Hostile Shots Fired 318 | . 24 1 63 3 . . 54 173 Missed 138 | . 10 . 24 2 . . 25 77 Damage Taken 2376 | . 117 7 326 8 . . 343 1575 Core 1067 | . 75 7 156 . . . 126 703 Absorbed by Shields . | . . . . . . . . . Redirected to Shielding 32 | . . . . . . . 7 25 Ignored by Resistances 673 | . 38 2 105 2 . . 99 427 Core Remaining (%) 76 | 100 . 67 . . . 61 77 . Volleys Fired 69 | . 40 . . 1 . . 14 14 Largest 2 | . 2 . . 1 . . 1 1 Hottest 60 | . 60 . . 36 . . 36 36 Shots Fired 70 | . 41 . . 1 . . 14 14 Gun 49 | . 41 . . . . . . 8 Cannon . | . . . . . . . . . Launcher 21 | . . . . 1 . . 14 6 Special . | . . . . . . . . . Kinetic 48 | . 40 . . . . . . 8 Thermal 1 | . 1 . . . . . . . Explosive 21 | . . . . 1 . . 14 6 Electromagnetic . | . . . . . . . . . Robot Hit Streak 12 | . 12 . . 1 . . 4 9 Robot Miss Streak 2 | . 2 . . . . . . 2 Penetration Max . | . . . . . . . . . Secondary Targets . | . . . . . . . . . Shots Hit Robots 98 | . 27 . 14 3 . . 18 36 Core Hits 97 | . 15 . 4 4 . . 35 39 Critical Kills . | . . . . . . . . . Critical Parts Destroyed . | . . . . . . . . . Critical Strikes 6 | . . . 2 . . . 1 3 Sever 6 | . . . 2 . . . 1 3 Melee Attacks 106 | . . . 23 2 . . 22 59 Impact . | . . . . . . . . . Slashing 106 | . . . 23 2 . . 22 59 Piercing . | . . . . . . . . . Sneak Attacks 9 | . . . 1 2 . . 1 5 Combat Hostiles . | . . . . . . . . . Follow-up Attacks . | . . . . . . . . . Damage Inflicted 5318 | . 231 . 524 412 . . 1887 2264 Guns 411 | . 231 . . . . . . 180 Cannons . | . . . . . . . . . Explosions 1844 | . . . . 276 . . 1146 422 Melee 2966 | . . . 524 136 . . 741 1565 Ramming 97 | . . . . . . . . 97 Kinetic 411 | . 231 . . . . . . 180 Thermal . | . . . . . . . . . Explosive 1844 | . . . . 276 . . 1146 422 Electromagnetic . | . . . . . . . . . Impact . | . . . . . . . . . Slashing 2966 | . . . 524 136 . . 741 1565 Piercing . | . . . . . . . . . Highest Corruption 1 | . . . . . . . . 1 Average Corruption 1 | . . . . . . . . 1 Corruption Purged . | . . . . . . . . . Corruption Blocked . | . . . . . . . . . Effects 1 | . . . . . . . . 1 Message Errors 1 | . . . . . . . . 1 Overload Shots . | . . . . . . . . . Overflow Damage 462 | . . . 41 65 . . 96 260 Projectiles . | . . . . . . . . . Explosions 137 | . . . . 65 . . 11 61 Melee 325 | . . . 41 . . . 85 199 Knockbacks . | . . . . . . . . . Impact . | . . . . . . . . . Kinetic . | . . . . . . . . . Secondary . | . . . . . . . . . Self-Inflicted Damage 132 | . . . . . . . . 132 Shots 2 | . . . . . . . . 2 Rammed 31 | . . . . . . . . 31 Targets Rammed 31 | . . . . . . . . 31 Kicked . | . . . . . . . . . Crushed . | . . . . . . . . . Highest Temperature 28 | . 28 . . . . . 28 18 Average Temperature 5 | . 4 . . . . . 11 13 Received Heat Transfer 576 | . 54 . 150 . . . 189 183 Siege Activations . | . . . . . . . . . Robots Corrupted . | . . . . . . . . . Combat Hostiles . | . . . . . . . . . Parts Fried . | . . . . . . . . . Impact Corruptions . | . . . . . . . . . Robots Melted . | . . . . . . . . . Combat Hostiles . | . . . . . . . . . Parts Melted . | . . . . . . . . . Heat Transferred . | . . . . . . . . . Parts Sabotaged . | . . . . . . . . . Parts Stolen . | . . . . . . . . . Parts Stripped . | . . . . . . . . . Power Chain Reactions . | . . . . . . . . . Alert | -11 -10 -10 -9 -9 -9 -8 -8 -7 ------- Run | Yrd Mat Min Mat Min Exi Min Mat Fac Peak Influence 694 | . 133 43 226 166 . . 694 392 Initial 270 | . . 43 13 74 . . . 270 Average 175 | . 69 43 91 129 . . 202 261 Maximum Alert Level 2 | . . . 1 . . . 2 1 Low Security (%) 65 | 100 100 100 94 100 . 100 65 35 Level 1 30 | . . . 5 . . . 7 64 Level 2 3 | . . . . . . . 26 . Level 3 . | . . . . . . . . . Level 4 . | . . . . . . . . . Level 5 . | . . . . . . . . . High Security . | . . . . . . . . . Max Security . | . . . . . . . . . Squads Dispatched 5 | . . 1 . . . . 2 2 Investigation 1 | . . 1 . . . . . . Extermination 1 | . . . . . . . . 1 Reinforcement 3 | . . . . . . . 2 1 Assault . | . . . . . . . . . Garrison . | . . . . . . . . . Intercept . | . . . . . . . . . Searches Triggered . | . . . . . . . . . Construction Impeded 2 | . . . . . . . 1 1 Haulers Reinforced . | . . . . . . . . . Active Scanning Responses . | . . . . . . . . . Cargo Convoy Interrupts 1 | . . . . . . . . 1 Stealth | -11 -10 -10 -9 -9 -9 -8 -8 -7 --------- Run | Yrd Mat Min Mat Min Exi Min Mat Fac Distress Signals 3 | . 1 . . . . . 1 1 Communications Jammed . | . . . . . . . . . Distress Signals . | . . . . . . . . . Times Spotted 66 | . 7 1 15 3 . . 23 17 Peak Tracking Total 11 | . 2 3 9 3 . . 11 7 Tactical Retreats 5 | . . . 3 . . . 2 . Traps | -11 -10 -10 -9 -9 -9 -8 -8 -7 ------- Run | Yrd Mat Min Mat Min Exi Min Mat Fac Traps Triggered 3 | . . . . . . . . 3 Indirectly . | . . . . . . . . . Trap Hack Attempts . | . . . . . . . . . Triggered . | . . . . . . . . . Disarmed . | . . . . . . . . . Reprogrammed . | . . . . . . . . . Reused . | . . . . . . . . . Traps Extracted . | . . . . . . . . . Installed . | . . . . . . . . . Triggered . | . . . . . . . . . Machines | -11 -10 -10 -9 -9 -9 -8 -8 -7 ---------- Run | Yrd Mat Min Mat Min Exi Min Mat Fac Machines Disabled 9 | . . . . . . . 1 8 Max in Single Turn 4 | . . . . . . . 1 4 Machines Repaired . | . . . . . . . . . Machines Dismantled . | . . . . . . . . . Machines Sabotaged . | . . . . . . . . . Overloaded Fab Kills . | . . . . . . . . . Hacking | -11 -10 -10 -9 -9 -9 -8 -8 -7 --------- Run | Yrd Mat Min Mat Min Exi Min Mat Fac Machines Accessed 3 | . 1 1 . . . . 1 . Terminals 1 | . 1 . . . . . . . Fabricators . | . . . . . . . . . Repair Stations . | . . . . . . . . . Recycling Units . | . . . . . . . . . Scanalyzers 1 | . . . . . . . 1 . Garrison Access . | . . . . . . . . . Total Hacks 13 | . 2 1 . . . . 10 . Successful 12 | . 1 1 . . . . 10 . Failed 1 | . 1 . . . . . . . Catastrophic . | . . . . . . . . . Database Lockouts . | . . . . . . . . . Manual 1 | . . . . . 1 . . . Terminals 2 | . 2 . . . . . . . Fabricators . | . . . . . . . . . Repair Stations . | . . . . . . . . . Recycling Units . | . . . . . . . . . Scanalyzers 10 | . . . . . . . 10 . Garrison Access . | . . . . . . . . . Terminal Hacks 2 | . 1 1 . . . . . . Open Door 1 | . . 1 . . . . . . Hauler Manifests 1 | . 1 . . . . . . . Fabricator Hacks . | . . . . . . . . . Repair Station Hacks . | . . . . . . . . . Recycling Unit Hacks . | . . . . . . . . . Scanalyzer 10 | . . . . . . . 10 . Insert Component 5 | . . . . . . . 5 . Analyze 5 | . . . . . . . 5 . Garrison Access Hacks . | . . . . . . . . . Unauthorized Hacks . | . . . . . . . . . Terminals . | . . . . . . . . . Fabricators . | . . . . . . . . . Repair Stations . | . . . . . . . . . Recycling Units . | . . . . . . . . . Scanalyzers . | . . . . . . . . . Garrison Access . | . . . . . . . . . Data Cores Recovered . | . . . . . . . . . Used . | . . . . . . . . . Hacking Detections . | . . . . . . . . . Full Trace Events . | . . . . . . . . . Feedback Events . | . . . . . . . . . Feedback Blocked . | . . . . . . . . . Robot Schematics Acquired . | . . . . . . . . . Robots Built . | . . . . . . . . . Authchips . | . . . . . . . . . Time . | . . . . . . . . . Total Robot Build Rating . | . . . . . . . . . Part Schematics Acquired 5 | . . . . . . . 5 . Parts Built . | . . . . . . . . . Authchips . | . . . . . . . . . Time . | . . . . . . . . . Total Part Build Rating . | . . . . . . . . . Parts Repaired . | . . . . . . . . . Time . | . . . . . . . . . Parts Recycled . | . . . . . . . . . Recycled Matter . | . . . . . . . . . Retrieved Matter . | . . . . . . . . . Retrieved Components . | . . . . . . . . . Parts Scanalyzed 5 | . . . . . . . 5 . Part Schematics Acquired 5 | . . . . . . . 5 . Parts Damaged . | . . . . . . . . . Bothacking | -11 -10 -10 -9 -9 -9 -8 -8 -7 ------------ Run | Yrd Mat Min Mat Min Exi Min Mat Fac Used RIF Installer . | . . . . . . . . . Robots Hacked . | . . . . . . . . . Non-combat . | . . . . . . . . . Combat . | . . . . . . . . . Robot Hacks Applied . | . . . . . . . . . Relay Couplers Released . | . . . . . . . . . Fabnet Peak Effective % . | . . . . . . . . . Robots Rewired . | . . . . . . . . . Allies Hacked . | . . . . . . . . . Hacks Repelled . | . . . . . . . . . Allies | -11 -10 -10 -9 -9 -9 -8 -8 -7 -------- Run | Yrd Mat Min Mat Min Exi Min Mat Fac Total Allies . | . . . . . . . . . Largest Group . | . . . . . . . . . Highest-Rated Group . | . . . . . . . . . Highest-Rated Ally . | . . . . . . . . . Total Orders . | . . . . . . . . . Ally Attacks . | . . . . . . . . . Total Damage . | . . . . . . . . . Kills . | . . . . . . . . . Allies Corrupted . | . . . . . . . . . Allies Melted . | . . . . . . . . . Intel | -11 -10 -10 -9 -9 -9 -8 -8 -7 ------- Run | Yrd Mat Min Mat Min Exi Min Mat Fac Robot Analysis Total . | . . . . . . . . . Derelict Logs Recovered 2 | . . 1 . 1 . . . . Drone Launches . | . . . . . . . . . Drone Recoveries . | . . . . . . . . . Exploration | -11 -10 -10 -9 -9 -9 -8 -8 -7 ------------- Run | Yrd Mat Min Mat Min Exi Min Mat Fac Turns Passed 2219 | 35 250 193 153 179 94 67 288 960 Spaces Moved 3358 | 35 393 382 255 434 221 180 532 926 Core 55 | 5 . . . . . . . 50 Treads . | . . . . . . . . . Legs . | . . . . . . . . . Wheels 40 | 30 5 . . . . . . 5 Hover . | . . . . . . . . . Flight 3263 | . 388 382 255 434 221 180 532 871 Fastest Speed 28 | 50 37 37 37 37 37 37 32 28 Average Speed 39 | 75 37 37 37 37 39 37 35 45 Slowest Speed 185 | 80 185 37 37 107 107 37 37 107 Overloaded Moves . | . . . . . . . . . Propulsion Burnouts . | . . . . . . . . . Robots Hopped . | . . . . . . . . . Cave-ins Triggered . | . . . . . . . . . Exploration Rate (%) 43 | 3 71 65 17 86 59 31 42 16 Regions Visited 8 Branch Regions 4 Pre-discovered Areas 1 | . . . . 1 . . . . Known Exits Taken 2 | . . . . . . 1 1 . Unknown Exits Taken 6 | 1 1 1 1 1 1 . . . Scrap Searched 1 | . . . . 1 . . . . Spaces Dug 66 | . . . 7 . . . 15 44 Terrain Destroyed 232 | . . . 7 8 . . 155 62 Melee 18 | . . . 7 . . . 7 4 Projectile . | . . . . . . . . . AOE 214 | . . . . 8 . . 148 58 Terrain Rammed . | . . . . . . . . . Walls Destroyed . | . . . . . . . . . Machines Disabled . | . . . . . . . . . Actions | -11 -10 -10 -9 -9 -9 -8 -8 -7 --------- Run | Yrd Mat Min Mat Min Exi Min Mat Fac Total 4049 | 40 459 433 278 448 227 179 594 1391 Wait 375 | . 10 43 . . . . 15 307 Move 3350 | 34 392 381 254 433 220 179 531 926 Hop . | . . . . . . . . . Pick Up 21 | 1 6 3 . 1 3 . 3 4 Fast Attach 20 | 5 3 1 1 1 1 . 4 4 Attach 9 | . . . . 5 . . 2 2 Detach 3 | . . . . 3 . . . . Swap 12 | . 4 2 . 1 . . 1 4 Drop 17 | . 4 3 . 1 3 . 2 4 Fire 69 | . 40 . . 1 . . 14 14 Melee 106 | . . . 23 2 . . 22 59 Ram 31 | . . . . . . . . 31 Kick . | . . . . . . . . . Crush . | . . . . . . . . . Escape Stasis 36 | . . . . . . . . 36 Rewire . | . . . . . . . . . Trap . | . . . . . . . . . Miscellaneous . | . . . . . . . . . Route ------- -11/Scrapyard -10/Materials (discovered 5 exits: [*Mat x3] / *Min x2) -10/Mines -9/Materials (discovered 2 exits: Mat / [*Min]) -9/Mines (discovered 3 exits: *Mat x2 / *Exi) -9/Exiles -8/Mines -8/Materials (discovered 2 exits: *Fac x2) -7/Factory (discovered 2 exits: [Fac] / Sto) History --------- Turn | Location | Event 3 | -11/Scrapyard | Discovered new exit (range 16) 36 | -11/Scrapyard | Entered Materials 111 | -10/Materials | Discovered new exit (range 8) 131 | -10/Materials | Discovered new exit (range 12) 181 | -10/Materials | Discovered new exit (range 14) 182 | -10/Materials | Discovered new exit (range 9) 191 | -10/Materials | Discovered new exit (range 14) 286 | -10/Materials | Entered Mines 322 | -10/Mines | Build established: Mutant 331 | -10/Mines | Learned location of 1 exit from Materials 335 | -10/Mines | Found a damaged Exp. Sensor Array with a note attached 336 | -10/Mines | Found Prototype Device 337 | -10/Mines | Identified Exp. Sensor Array 360 | -10/Mines | Met a Derelict shopkeep closing up shop 460 | -10/Mines | Discovered new exit (range 11) 463 | -10/Mines | Assembled infested the area 479 | -10/Mines | Entered Materials 479 | -9/Materials | Evolved 2 slots: Utility x2 480 | -9/Materials | Identified exit to Materials 497 | -9/Materials | Discovered new exit (range 10) 632 | -9/Materials | Entered Mines 703 | -9/Mines | Received a Rocket Launcher from a helpful Derelict 723 | -9/Mines | Discovered exit to Materials (range 10) 726 | -9/Mines | Discovered exit to Materials (range 12) 772 | -9/Mines | Learned location of Storage (-7) 810 | -9/Mines | Deemed a non-threat by the Exiles lab entrance 810 | -9/Mines | Discovered new exit (range 5) 811 | -9/Mines | Entered Exiles 824 | -9/Exiles | Met 8R-AWN 830 | -9/Exiles | Met EX-HEX 840 | -9/Exiles | Met EX-BIN 844 | -9/Exiles | Aligned with FarCom system 845 | -9/Exiles | Given EX-Vault access code 854 | -9/Exiles | Opened EX-Vault 856 | -9/Exiles | Found Prototype Slashing Weapon 856 | -9/Exiles | Identified Longsword +1 879 | -9/Exiles | Warned to stay clear of 0b10 Research branches 889 | -9/Exiles | Met EX-DEC 902 | -9/Exiles | Discovered new exit (range 10) 905 | -9/Exiles | Left Exiles lab with Longsword +1 905 | -9/Exiles | Entered Mines 969 | -8/Mines | Discovered exit to Materials (range 4) 972 | -8/Mines | Entered Materials 972 | -8/Materials | Evolved 2 slots: Propulsion x1, Utility x1 1007 | -8/Materials | Discovered new exit (range 10) 1118 | -8/Materials | Discovered new exit (range 10) 1206 | -8/Materials | Build established: Scout 1234 | -8/Materials | Destroyed 11 combat bots 1251 | -8/Materials | Lost 3 parts (1p1u1w) 1259 | -8/Materials | Identified exit to Factory 1260 | -8/Materials | Entered Factory 1260 | -7/Factory | Evolved 2 slots: Propulsion x1, Utility x1 1261 | -7/Factory | Identified exit to Storage 1844 | -7/Factory | Build established: Hacker-Scout 1940 | -7/Factory | Discovered new exit (range 9) 2102 | -7/Factory | Cargo convoy interrupted 2144 | -7/Factory | Core integrity fell below 50% 2174 | -7/Factory | Lost 8 parts (1p4n2u1w) 2180 | -7/Factory | Core integrity fell below 20% 2220 | -7/Factory | Destroyed by H-55 Commando with Gauss Rifle Last Messages --------------- K-01 Serf collects debris. Nuclear Reactor explodes. K-01 Serf destroyed. Slammed into A-27 Freighter. U-05 Engineer builds a Wall. Slammed into A-27 Freighter. Acquired 7 matter. Acquired 3 matter. The unstable cave ceiling collapses. Penetrated by Slug. U-05 Engineer lays Concrete. K-01 Serf collects debris. U-05 Engineer lays Concrete. Penetrated by Slug. Ion Engine destroyed. U-05 Engineer builds a Wall. The unstable cave ceiling collapses. Slammed into A-27 Freighter. K-01 Serf collects debris. Penetrated by Slug. Map ----- +----------------------------------------------------+ | ??????????#????#?#?############## ######## ####### | | ???###?#?#???#?#??#?############ ######## | | ??? ? ???????????#################### ########## | | ???" " "?????????#?#?##########?####### ########## | | ?" " " "??????????###########?####### #####?#### | | ?" " " " " ????#??#######?###?####### ######?## | | " " " " " #???????#?############### ######### | | " " " " " #??????????#?############### ########## | | " " " " " #??####################### ######## | | " " " " " #?## # # ###### | | " " " " " #?## # # ###### | | " " " " " #?## " " " " " # # ###??# | | #??# " " " " " # + ###### | | ] #?##! " " " " " # # #????# | | #####+######### " " " " " # # ###?## | | # " " " " " # # #?#### | | # " " " " " # # ###### | | # " " " " " # # + | | # " " " " " # + ###### | | # " " " " " # # #????# | | #####+### # # # ##???# | | # ## # # ## ######## | | # % | | # i% %%% * | | # % h %%% % k | | # %%"" %@A | | # %""" = | | #% "" ######### T## | | ####+####%% h ##??##??####? | | %%% """ ####??#?#???? | | %% "Y #???#??#??#?? | | % """ ###?####?????#? | | % % ? ??????? | | """ u ????? | | """ ######### """"?"????#? | | """ ## ! """""??????? | | ## """""??????? | | "" ## # """""" # | | ""% ## + #? | | "% ## # """""" #? | | # !!! # """""? ? ??? | | "" # !! ###########+### #? """"?"????#? | | %" + !! ######! # #? """"?" ??# | | % # ##?### """ # # ? ????#? | | # #? # """ # #######+#?#??#? | | # ####?# """ # #??#?## #???### | | ### # ###### # ###???# ##? | | ### " ###?## """ + #?###?# ## "" | | ### # ###?## Y" # ###??## ##! | | ?## ############# """ # ###### # ! | +----------------------------------------------------+ Best States ------------- Heat Dissipation 34 Energy Generation 14 Energy Capacity 250 Matter Stores 300 Matter Capacity 300 Sight Range 18 Robot Scan Range 20 Terrain Scan Range 16 Terrain Scan Density 210 Additional Mass Support 6 Armor Coverage 225 Resistance: KI 20 Resistance: TH 20 Resistance: EX 20 Resistance: EM 20 Resistance: I 20 Resistance: S 20 Resistance: P 20 Utility Shielding 33 Evasion (%) 64 Targeting Accuracy 11 Offensive Hacking 20 Item Schematics ----------------- Rnf. Deuterium Engine | -8/Materials | Scanalyzed Imp. Grenade Launcher | -8/Materials | Scanalyzed Utility Shielding | -8/Materials | Scanalyzed Nuclear Core | -8/Materials | Scanalyzed Rocket Launcher | -8/Materials | Scanalyzed Robot Schematics ------------------ None Fabricated ------------ Nothing Alien Tech Used ----------------- None Achievements -------------- None Challenges ------------ None Game ------ Seed NeutronSpliceDesublimator Manual? 0 Play Time 00:38:15 Cumulative 19.4 hours Start 2024.04.04 @ 22:13:08 End 2024.04.04 @ 22:48:52 Sessions 1 Manual Loads 0 Difficulty Adventurer Special Mode None Game No. 22 Rogue 0 Adventurer 22 Explorer 0 Win Type - Total 1 Types 1/0/0/0/0/0/0/0/0 Lore% 15 Gallery% 33 Achievement% 28 Wizard Run 0 Options --------- Layout 1 ASCII 0 Keyboard 0 Movement Mouse Keybinds 0 Fullscreen 1 Font 32/SmallcapsGlow Map View 50x40 Zoom Use 0% Tactical HUD 0 Map Filters NONE Filters NONE Steam 1 RUN: 4f7732bd-27ca-42a7-be42-a80047c15f33